bitfinex/quotes_SOLUSD_20250724
["timestamp","ask_amount","ask_price","bid_price","bid_amount"]
[1753386195838,0.03,188.25,188.24,5.62039077]
[1753386196251,0.03,188.26,188.25,0.28432314]
[1753386196465,0.03,188.26,188.25,6.28039077]
[1753386197248,0.03,188.26,188.25,11.30815262]
[1753386198368,0.03,188.26,188.25,5.33606763]
[1753386201168,0.03,188.26,188.25,10.64815262]
[1753386202048,0.03,188.26,188.25,11.30815262]
[1753386203384,0.03,188.26,188.25,11.59247576]
[1753386204173,0.03,188.31,188.27,0.28432314]
[1753386204368,0.03,188.31,188.3,5.33606763]
[1753386204566,0.03,188.31,188.3,5.99606763]
[1753386204760,0.03,188.31,188.3,11.30674208]
[1753386206473,0.03,188.31,188.3,5.33606763]
[1753386208397,0.03,188.31,188.3,6.04606763]
[1753386208691,0.03,188.31,188.3,11.35674208]
[1753386210769,0.03,188.31,188.3,11.64106522]
[1753386211676,0.03,188.31,188.3,28.95681663]
[1753386211986,0.03,188.33,188.32,5.33606763]
[1753386212384,0.03,188.33,188.32,6.33039077]
[1753386212786,0.03,188.33,188.32,11.64050122]
[1753386213388,0.03,188.33,188.32,11.35617808]
[1753386217086,0.03,188.33,188.32,28.42518519]
[1753386219676,0.03,188.34,188.33,17.06900711]
[1753386219877,0.03,188.34,188.33,23.11507474]
[1753386221594,0.03,188.34,188.33,28.42490323]
[1753386224084,0.03,188.34,188.33,5.30982849]
[1753386224394,0.03,188.34,188.33,10.64589612]
[1753386224700,0.74,188.34,188.33,5.33606763]
[1753386225896,0.74,188.34,188.31,125.96]
[1753386226202,0.74,188.34,188.33,5.33606763]
[1753386228095,0.74,188.34,188.32,5.33606763]
[1753386228883,0.71,188.33,188.32,5.33606763]
[1753386230081,0.03,188.34,188.32,5.33606763]
[1753386230401,0.74,188.34,188.33,5.33606763]
[1753386230806,0.03,188.34,188.33,5.33606763]
[1753386231109,0.74,188.34,188.33,5.33606763]
[1753386231295,0.74,188.34,188.31,5.33606763]
[1753386231608,37.3856742,188.34,188.3,0.06]
[1753386231907,6.01998608,188.33,188.3,0.06]
[1753386232404,0.71,188.32,188.3,0.06]
[1753386233812,5.31039243,188.31,188.3,0.06]
[1753386234301,6.02039243,188.31,188.3,0.06]
[1753386235393,0.71,188.31,188.3,0.06]
[1753386241109,6.04606763,188.31,188.3,0.06]
[1753386241412,37.35646006,188.31,188.3,0.06]
[1753386241943,11.35646006,188.31,188.3,0.06]
[1753386242515,64.75,188.31,188.3,0.06]
[1753386242808,32.02039243,188.31,188.3,0.06]
[1753386243026,70.06039243,188.31,188.3,0.06]
[1753386243346,64.75,188.31,188.3,0.06]
[1753386243707,64.04,188.31,188.3,0.06]
[1753386244533,0.03,188.34,188.3,5.39606763]
[1753386244704,38.75,188.34,188.31,5.33606763]
[1753386245007,0.68,188.33,188.31,5.33606763]
[1753386245817,0.68,188.32,188.3,0.06]
[1753386246022,26.0,188.31,188.3,0.06]
[1753386246221,31.31039243,188.31,188.3,0.06]
[1753386246404,31.99039243,188.31,188.3,0.06]
[1753386247425,26.71,188.34,188.3,5.39606763]
[1753386247609,26.0,188.33,188.32,5.33606763]
[1753386247811,64.75,188.34,188.32,5.33606763]
[1753386248330,0.68,188.33,188.3,0.06]
[1753386249206,5.31011045,188.32,188.3,0.06]
[1753386249403,38.72,188.31,188.3,0.06]
[1753386251509,38.04,188.31,188.3,0.06]
[1753386251715,0.03,188.34,188.3,6.08606763]
[1753386251927,0.03,188.34,188.33,5.33606763]
[1753386252446,11.35561522,188.34,188.3,0.06]
[1753386252748,64.7,188.33,188.3,0.06]
[1753386253118,0.68,188.32,188.3,0.06]
[1753386253641,5.99011553,188.32,188.3,0.06]
[1753386254833,5.31011553,188.32,188.3,0.06]
[1753386255037,0.68,188.31,188.3,0.06]
[1753386258339,5.99039243,188.31,188.3,0.06]
[1753386263749,28.39546717,188.31,188.3,1e-08]
[1753386265334,66.41546717,188.31,188.3,1e-08]
[1753386265850,69.93373312,188.31,188.3,1e-08]
[1753386266441,26.0,188.27,188.26,0.06]
[1753386266641,69.35606763,188.27,188.26,0.06]
[1753386266851,87.10507474,188.27,188.26,0.06]
[1753386267139,26.0,188.23,188.17,0.75]
[1753386267347,64.02,188.23,188.19,5.99606763]
[1753386267637,26.0,188.23,188.19,5.99606763]
[1753386267839,31.31264941,188.23,188.19,5.99606763]
[1753386268043,31.31264941,188.23,188.19,0.66]
[1753386268950,37.35871704,188.23,188.19,0.66]
[1753386269146,32.02264941,188.23,188.19,0.66]
[1753386269450,31.31264941,188.23,188.19,0.66]
[1753386271241,32.02264941,188.23,188.19,0.66]
[1753386271442,37.35871704,188.23,188.17,5.39606763]
[1753386271968,32.02264941,188.23,188.17,5.39606763]
[1753386272154,37.35871704,188.23,188.18,0.66]
[1753386272467,37.35871704,188.23,188.18,0.72]
[1753386272841,36.64871704,188.23,188.18,0.06]
[1753386273062,36.64871704,188.23,188.19,0.66]
[1753386273251,37.35871704,188.23,188.18,0.06]
[1753386273582,31.31264941,188.23,188.19,0.66]
[1753386273742,13.27987209,188.26,188.22,0.72]
[1753386273743,5.33606763,188.26,188.22,0.72]
[1753386273948,38.02,188.25,188.22,0.72]
[1753386274157,26.0,188.25,188.22,0.72]
[1753386275145,26.0,188.24,188.22,0.06]
[1753386275361,31.31216118,188.25,188.22,0.72]
[1753386275566,31.31216118,188.25,188.22,0.06]
[1753386275769,32.02216118,188.25,188.22,0.06]
[1753386278172,31.31216118,188.25,188.22,0.06]
[1753386278365,26.0,188.25,188.23,0.66]
[1753386279354,26.0,188.25,188.22,0.06]
[1753386279678,26.0,188.25,188.22,0.72]
[1753386281577,0.74,188.33,188.24,5.33606763]
[1753386281754,38.0,188.32,188.29,5.33606763]
[1753386281959,38.71,188.32,188.29,5.33606763]
[1753386282256,26.0,188.3,188.29,5.33606763]
[1753386282583,38.71,188.32,188.29,5.33606763]
[1753386282584,44.02017223,188.32,188.29,5.33606763]
[1753386282762,26.0,188.3,188.29,5.33606763]
[1753386286581,0.03,188.33,188.29,5.99606763]
[1753386286782,0.03,188.33,188.32,5.33606763]
[1753386287161,0.03,188.33,188.32,5.99606763]
[1753386289481,0.03,188.33,188.32,11.30617808]
[1753386290368,0.03,188.33,188.32,28.37518519]
[1753386291086,0.03,188.37,188.33,17.06900711]
[1753386291294,0.03,188.37,188.36,10.9564584]
[1753386291671,0.03,188.37,188.36,11.6164584]
[1753386291991,0.03,188.37,188.36,17.9510584]
[1753386292182,0.03,188.38,188.37,0.28432314]
[1753386292365,0.03,188.38,188.37,33.70984333]
[1753386293779,0.03,188.39,188.38,17.06900711]
[1753386294092,0.03,188.39,188.38,5.99606763]
[1753386294663,0.03,188.39,188.38,11.30448678]
[1753386294876,0.03,188.39,188.38,5.99606763]
[1753386295478,0.03,188.39,188.38,11.30448678]
[1753386295873,0.03,188.39,188.38,5.99606763]
[1753386296575,0.03,188.39,188.37,5.33606763]
[1753386296783,0.03,188.39,188.35,5.33606763]
[1753386296784,0.71,188.38,188.35,5.33606763]
[1753386297385,0.7,188.37,188.34,5.33606763]
[1753386299080,5.30843453,188.38,188.35,5.33606763]
[1753386299288,0.03,188.39,188.37,5.33606763]
[1753386299469,0.03,188.39,188.38,5.33606763]
[1753386299990,0.03,188.39,188.38,6.03606763]
[1753386300503,0.03,188.39,188.38,49.56880992]
[1753386300717,0.03,188.41,188.38,49.56880992]
[1753386300718,0.03,188.41,188.39,17.06900711]
[1753386301011,0.03,188.41,188.4,29.3564603]
[1753386301175,0.03,188.41,188.4,30.0564603]
[1753386301373,0.03,188.43,188.41,17.06900711]
[1753386301582,0.03,188.43,188.42,17.06900711]
[1753386301808,0.03,188.43,188.42,43.97606763]
[1753386301998,0.03,188.43,188.42,38.64]
[1753386302175,0.03,188.43,188.42,43.97606763]
[1753386302376,0.03,188.43,188.42,44.50679685]
[1753386302689,0.03,188.43,188.42,49.28335984]
[1753386307803,0.03,188.43,188.42,66.88309617]
[1753386307994,0.03,188.43,188.42,11.34335984]
[1753386308214,0.03,188.43,188.42,49.26335984]
[1753386311130,0.03,188.43,188.42,5.33606763]
[1753386311321,0.03,188.43,188.42,43.25606763]
[1753386314290,0.03,188.43,188.42,48.56335984]
[1753386314495,0.03,188.43,188.42,49.26335984]
[1753386315139,0.03,188.43,188.42,66.33236695]
[1753386316336,0.1,188.46,188.44,5.30672893]
[1753386316535,0.1,188.46,188.45,65.66114237]
[1753386316742,0.1,188.46,188.45,66.36114237]
[1753386317513,0.1,188.46,188.45,66.34114237]
[1753386318344,0.1,188.46,188.45,71.6475897]
[1753386319137,0.1,188.46,188.45,66.31152207]
[1753386319338,0.8,188.46,188.38,6.6224]
[1753386319647,0.8,188.46,188.41,5.33606763]
[1753386319942,0.7,188.45,188.42,37.9]
[1753386320148,31.40629762,188.46,188.42,37.9]
[1753386320352,26.1,188.46,188.42,43.23606763]
[1753386320653,0.1,188.46,188.45,5.33606763]
[1753386320823,0.1,188.46,188.45,43.93606763]
[1753386322452,0.1,188.46,188.45,5.33606763]
[1753386322639,0.8,188.46,188.41,5.3073391]
[1753386322839,0.1,188.46,188.43,5.33606763]
[1753386323050,0.7,188.45,188.44,37.9]
[1753386323246,0.7,188.45,188.42,5.33606763]
[1753386323551,0.7,188.44,188.42,43.23606763]
[1753386325356,0.8,188.46,188.43,5.33606763]
[1753386325546,0.7,188.45,188.43,5.33606763]
[1753386326661,0.7,188.45,188.42,43.23606763]
[1753386326844,0.1,188.46,188.43,5.33606763]
[1753386327232,0.8,188.46,188.43,5.33606763]
[1753386329741,0.71,188.45,188.43,5.33606763]
[1753386330857,0.1,188.46,188.43,5.33606763]
[1753386331368,2.2413,188.45,188.4,43.21606763]
[1753386331579,0.71,188.44,188.41,5.33606763]
[1753386333268,1.5313,188.45,188.41,11.35355725]
[1753386333692,1.5313,188.45,188.42,5.33606763]
[1753386334461,1.5313,188.45,188.42,6.04606763]
[1753386334865,0.81,188.46,188.42,6.04606763]
[1753386335172,0.81,188.46,188.45,5.33606763]
[1753386335173,0.1,188.46,188.45,5.33606763]
[1753386335873,0.1,188.46,188.44,5.33606763]
[1753386336075,0.81,188.46,188.44,5.33606763]
[1753386336272,0.71,188.45,188.43,37.88]
[1753386336475,0.71,188.44,188.41,43.21606763]
[1753386336981,0.71,188.43,188.41,37.88]
[1753386337155,6.01711458,188.43,188.39,5.33606763]
[1753386337353,0.71,188.42,188.39,5.33606763]
[1753386337575,5.30681157,188.44,188.4,5.33606763]
[1753386337880,0.71,188.41,188.39,5.33606763]
[1753386338064,0.71,188.43,188.4,5.33606763]
[1753386338659,0.71,188.42,188.4,5.33606763]
[1753386339065,5.30672893,188.44,188.38,0.06]
[1753386339357,5.33606763,188.39,188.38,0.06]
[1753386339858,6.04606763,188.39,188.38,0.06]
[1753386340053,0.71,188.39,188.38,0.06]
[1753386340277,26.71,188.41,188.38,5.39606763]
[1753386340464,5.33606763,188.39,188.38,0.06]
[1753386340984,11.354205,188.39,188.38,0.06]
[1753386341277,32.01813737,188.39,188.38,0.06]
[1753386343281,37.354205,188.39,188.38,0.06]
[1753386344156,37.354205,188.39,188.38,1e-08]
[1753386344359,30.01221211,188.39,188.38,1e-08]
[1753386349780,34.16432539,188.39,188.38,1e-08]
[1753386350083,43.06900711,188.37,188.36,1e-08]
[1753386350289,91.62114237,188.37,188.36,1e-08]
[1753386350471,92.33114237,188.37,188.36,1e-08]
[1753386351810,37.35476859,188.37,188.36,1e-08]
[1753386351988,75.23476859,188.37,188.36,1e-08]
[1753386353082,97.63984333,188.37,188.36,1e-08]
[1753386353886,97.63984333,188.37,188.3,0.06]
[1753386353888,26.0,188.33,188.3,0.06]
[1753386354098,31.33606763,188.31,188.3,0.06]
[1753386354599,32.04606763,188.31,188.3,0.06]
[1753386355102,37.35646006,188.31,188.3,0.06]
[1753386356592,26.0,188.31,188.3,0.06]
[1753386356791,63.88,188.31,188.3,0.06]
[1753386358478,5.33606763,188.35,188.3,0.75]
[1753386358682,26.0,188.33,188.31,5.33606763]
[1753386358879,37.88,188.34,188.32,0.69]
[1753386359081,37.88,188.34,188.32,5.33606763]
[1753386359286,36.39447918,188.4,188.32,5.33606763]
[1753386359287,9.46051233,188.39,188.33,0.69]
[1753386359610,0.3185,188.35,188.33,0.69]
[1753386359776,0.3185,188.35,188.34,5.33606763]
[1753386359972,0.3185,188.35,188.34,0.69]
[1753386360584,0.3185,188.35,188.33,5.33606763]
[1753386360787,6.30785269,188.35,188.31,0.69]
[1753386360991,6.01606763,188.34,188.3,0.06]
[1753386361186,5.33606763,188.33,188.3,0.06]
[1753386361409,43.19606763,188.32,188.3,0.06]
[1753386361710,43.87606763,188.32,188.3,0.06]
[1753386361922,5.99039243,188.31,188.3,0.06]
[1753386362700,5.31039243,188.31,188.3,0.06]
[1753386363100,43.87606763,188.32,188.3,0.06]
[1753386363284,43.17016106,188.32,188.3,0.06]
[1753386363487,5.31016106,188.32,188.3,0.06]
[1753386363701,37.88,188.31,188.3,0.06]
[1753386366410,100.44044237,188.29,188.28,1e-08]
[1753386366791,105.75139887,188.29,188.28,1e-08]
[1753386366990,100.41533124,188.29,188.28,1e-08]
[1753386368006,17.06900711,188.28,188.26,1e-08]
[1753386368223,60.28507474,188.27,188.26,1e-08]
[1753386368408,60.96507474,188.27,188.26,1e-08]
[1753386368913,66.27659542,188.27,188.26,1e-08]
[1753386371628,66.11443385,188.27,188.26,1e-08]
[1753386372295,66.25659542,188.27,188.26,1e-08]
[1753386373118,49.18758831,188.27,188.26,1e-08]
[1753386373896,43.17152068,188.27,188.26,1e-08]
[1753386376610,5.06575731,188.34,188.26,6.02606764]
[1753386376815,37.86,188.33,188.28,5.33606763]
[1753386377010,26.0,188.3,188.29,6.02606763]
[1753386377214,63.86,188.3,188.29,0.69]
[1753386378807,26.0,188.3,188.29,0.69]
[1753386379011,37.86,188.31,188.29,0.69]
[1753386379218,0.5,188.3,188.28,5.33606763]
[1753386379531,37.86,188.31,188.28,5.33606763]
[1753386380032,37.86,188.31,188.29,0.69]
[1753386380625,37.86,188.31,188.29,6.02606763]
[1753386381244,37.86,188.31,188.29,0.69]
[1753386381624,38.1785,188.31,188.29,0.69]
[1753386382362,38.1785,188.31,188.26,5.31166825]
[1753386382363,0.3185,188.31,188.3,6.02606763]
[1753386384646,0.3185,188.31,188.27,0.69]
[1753386384957,5.62891899,188.31,188.28,5.33606763]
[1753386385155,5.62891899,188.31,188.28,6.02606763]
[1753386386136,5.62891899,188.31,188.29,6.02606763]
[1753386386863,0.3185,188.31,188.29,6.02606763]
[1753386387066,0.3185,188.31,188.3,6.02606763]
[1753386387751,26.0,188.28,188.26,1e-08]
[1753386387955,63.84,188.28,188.26,1e-08]
[1753386388453,69.1514917,188.28,188.26,1e-08]
[1753386388972,63.84,188.28,188.26,5.33606764]
[1753386389148,37.84,188.28,188.27,6.03606763]
[1753386390575,43.15071889,188.3,188.27,6.03606763]
[1753386390861,43.15071889,188.3,188.27,5.33606763]
[1753386391066,43.15071889,188.3,188.28,0.7]
[1753386391287,37.84,188.3,188.29,0.7]
[1753386391491,37.84,188.3,188.27,8.69273725]
[1753386391492,43.15078026,188.3,188.28,0.7]
[1753386391997,43.15078026,188.3,188.27,8.69273725]
[1753386392290,43.15078026,188.3,188.27,9.39273725]
[1753386392463,43.15078026,188.3,188.27,0.7]
[1753386393069,43.15078026,188.3,188.26,8.69273726]
[1753386393269,43.82078026,188.3,188.26,0.70000001]
[1753386393681,43.82078026,188.3,188.26,1e-08]
[1753386393889,43.15078026,188.3,188.26,1e-08]
[1753386394193,43.15078026,188.3,188.26,9.39273726]
[1753386394382,43.82078026,188.3,188.26,9.39273726]
[1753386396402,0.03,188.29,188.26,9.39273726]
[1753386396575,37.84,188.28,188.26,9.39273726]
[1753386396769,43.15136244,188.28,188.26,1e-08]
[1753386401089,9.36273725,188.27,188.26,1e-08]
[1753386401404,35.36273725,188.27,188.26,1e-08]
[1753386401975,63.82,188.27,188.26,1e-08]
[1753386402979,64.49,188.27,188.26,1e-08]
[1753386403208,69.80152068,188.27,188.26,1e-08]
[1753386403678,70.12002068,188.27,188.26,1e-08]
[1753386405291,52.81275793,188.27,188.26,1e-08]
[1753386406596,17.06900711,188.26,188.25,1e-08]
[1753386406803,26.43174436,188.26,188.25,1e-08]
[1753386407312,31.74354718,188.26,188.25,1e-08]
[1753386408987,31.31180282,188.26,188.25,1e-08]
[1753386409207,0.03,188.29,188.25,9.39273726]
[1753386409406,37.82,188.28,188.26,0.7]
[1753386409989,31.31125504,188.28,188.26,0.7]
[1753386410189,37.82,188.27,188.25,8.69273726]
[1753386410389,37.82,188.27,188.25,9.39273726]
[1753386411599,43.13158343,188.27,188.25,9.39273726]
[1753386411996,37.82,188.27,188.25,8.69273726]
[1753386412202,37.82,188.27,188.26,0.7]
[1753386414215,37.82,188.27,188.26,6.03489971]
[1753386414617,5.34102088,188.29,188.26,6.03489971]
[1753386414914,37.82,188.28,188.26,6.03489971]
[1753386417594,37.82,188.28,188.26,5.98489971]
[1753386417937,37.82,188.28,188.27,5.98489971]
[1753386418109,37.82,188.28,188.27,0.65]
[1753386418426,37.85,188.28,188.26,5.33489971]
[1753386418915,0.03,188.28,188.26,5.98489971]
[1753386419092,37.85,188.28,188.26,5.98489971]
[1753386421007,43.16127029,188.28,188.26,5.33489971]
[1753386421896,37.85,188.28,188.26,5.33489971]
[1753386422097,37.85,188.28,188.27,5.98489971]
[1753386422098,0.03,188.28,188.27,5.98489971]
[1753386422603,0.03,188.28,188.27,11.31979942]
[1753386422811,0.03,188.28,188.27,12.97589942]
[1753386423028,0.03,188.28,188.27,18.2874201]
[1753386423395,0.03,188.28,188.27,12.95252039]
[1753386425529,0.03,188.29,188.28,16.78468397]
[1753386425829,0.03,188.32,188.28,16.78468397]
[1753386425830,0.03,188.32,188.31,5.33489971]
[1753386426318,0.03,188.32,188.31,5.98489971]
[1753386426507,0.3485,188.32,188.31,5.98489971]
[1753386427301,0.03,188.36,188.31,28.07997611]
[1753386427515,0.03,188.36,188.35,5.33489971]
[1753386428126,0.03,188.36,188.35,5.98489971]
[1753386430233,0.03,188.36,188.35,11.29416437]
[1753386431418,0.03,188.36,188.35,23.02976408]
[1753386431722,0.03,188.36,188.35,41.74327119]
[1753386432434,0.03,188.36,188.35,14.00446466]
[1753386432633,0.03,188.36,188.35,19.33936437]
[1753386433533,0.03,188.36,188.35,12.38559971]
[1753386433731,0.03,188.36,188.35,5.98489971]
[1753386434430,0.03,188.36,188.35,11.29416437]
[1753386436935,0.03,188.36,188.35,5.98489971]
[1753386437235,0.03,188.36,188.35,11.29416437]
[1753386437626,0.69,188.36,188.33,5.33489971]
[1753386437943,0.69,188.36,188.34,5.33489971]
[1753386438244,0.03,188.36,188.35,5.33489971]
[1753386438822,0.03,188.36,188.32,0.65]
[1753386439030,0.69,188.36,188.33,5.33489971]
[1753386440037,0.69,188.36,188.34,5.33489971]
[1753386440038,0.03,188.36,188.34,5.33489971]
[1753386440253,0.03,188.36,188.35,5.33489971]
[1753386440620,0.03,188.36,188.35,5.98489971]
[1753386442331,0.03,188.36,188.35,11.29416437]
[1753386444248,0.03,188.36,188.35,5.98489971]
[1753386444435,0.03,188.36,188.35,11.29416437]
[1753386447745,0.03,188.36,188.35,5.95926466]
[1753386447948,0.03,188.36,188.35,11.29416437]
[1753386449944,0.03,188.37,188.35,18.14166408]
[1753386450160,0.03,188.39,188.36,28.45880653]
[1753386450368,0.03,188.39,188.38,5.33489971]
[1753386450763,0.03,188.39,188.38,6.05489971]
[1753386451154,0.03,188.39,188.38,11.36331886]
[1753386453645,0.03,188.39,188.38,28.43232597]
[1753386456050,0.03,188.4,188.38,28.43232597]
[1753386456256,0.03,188.43,188.41,17.06900711]
[1753386456456,0.03,188.43,188.4,6.3159]
[1753386456457,0.03,188.43,188.42,43.05489971]
[1753386456968,0.03,188.43,188.42,43.77489971]
[1753386457270,0.03,188.44,188.42,61.37463604]
[1753386457466,0.03,188.44,188.43,6.05489971]
[1753386457658,0.03,188.44,188.43,43.05489971]
[1753386458254,0.03,188.44,188.38,30.34005499]
[1753386458255,0.73,188.44,188.36,0.72]
[1753386458457,0.73,188.44,188.42,5.33489971]
[1753386458659,0.03,188.44,188.43,5.33489971]
[1753386459957,0.03,188.44,188.43,11.36191027]
[1753386461856,0.03,188.44,188.43,11.64623341]
[1753386463272,0.03,188.44,188.43,11.36191027]
[1753386463948,0.03,188.44,188.43,11.64623341]
[1753386465223,0.03,188.44,188.43,28.43091738]
[1753386467498,0.03,188.44,188.43,66.13091738]
[1753386468205,0.03,188.47,188.44,17.06900711]
[1753386468410,0.03,188.47,188.46,5.33489971]
[1753386469438,0.03,188.47,188.46,6.05489971]
[1753386470156,0.03,188.47,188.46,11.36106547]
[1753386470305,0.03,188.47,188.46,16.69596518]
[1753386470635,0.03,188.47,188.46,16.98028832]
[1753386471325,0.03,188.47,188.46,6.3104889]
[1753386471541,0.03,188.47,188.46,16.69596518]
[1753386472525,0.03,188.47,188.46,16.98028832]
[1753386474648,0.03,188.47,188.46,33.76497229]
[1753386474949,0.03,188.51,188.47,17.06900711]
[1753386475124,0.03,188.51,188.5,5.33489971]
[1753386475325,0.03,188.51,188.5,43.01489971]
[1753386476336,0.03,188.51,188.5,48.31993949]
[1753386476547,0.03,188.51,188.5,49.03993949]
[1753386477061,0.03,188.51,188.5,43.01489971]
[1753386477219,0.73,188.51,188.5,37.68]
[1753386477747,0.73,188.51,188.5,43.01489971]
[1753386478256,0.03,188.51,188.5,43.01489971]
[1753386479340,0.03,188.51,188.5,48.31993949]
[1753386479530,0.03,188.51,188.5,48.98993949]
[1753386479856,0.03,188.51,188.5,6.00489971]
[1753386480024,0.03,188.51,188.47,6.26014099]
[1753386480224,0.03,188.51,188.5,5.33489971]
[1753386480443,0.69,188.51,188.5,43.01489971]
[1753386480644,0.03,188.51,188.5,43.01489971]
[1753386481626,0.03,188.51,188.5,5.33489971]
[1753386481963,0.03,188.51,188.5,43.01489971]
[1753386482551,0.03,188.51,188.5,48.98993949]
[1753386482758,0.03,188.51,188.5,49.27426263]
[1753386483354,0.1,188.52,188.5,153.9589466]
[1753386483553,0.03,188.57,188.56,26.0]
[1753386483863,0.1,188.63,188.57,17.06900711]
[1753386484046,0.1,188.63,188.62,5.33489971]
[1753386484355,0.1,188.63,188.62,42.99489971]
[1753386484532,0.1,188.63,188.62,43.94922285]
[1753386484731,0.66,188.69,188.63,17.06900711]
[1753386484932,6.3434,188.75,188.63,17.06900711]
[1753386484933,0.66,188.71,188.68,5.33489971]
[1753386485157,0.66,188.71,188.7,5.33489971]
[1753386485352,1.5694,188.74,188.7,5.33489971]
[1753386485565,1.5694,188.74,188.73,5.33489971]
[1753386485771,6.86769394,188.74,188.73,37.66]
[1753386486072,33.52769394,188.74,188.64,28.45648368]
[1753386486232,0.66,188.73,188.69,5.33489971]
[1753386486439,32.86769394,188.74,188.71,5.33489971]
[1753386486648,0.66,188.72,188.71,5.33489971]
[1753386487692,5.95885544,188.72,188.71,5.33489971]
[1753386487855,5.95885544,188.72,188.63,5.97134987]
[1753386488059,5.29885544,188.72,188.67,5.33489971]
[1753386488377,0.66,188.71,188.68,5.33489971]
[1753386488551,0.66,188.7,188.69,5.33489971]
[1753386488735,27.5694,188.74,188.69,5.33489971]
[1753386488937,0.66,188.73,188.67,42.96020631]
[1753386489136,0.66,188.73,188.71,5.33489971]
[1753386489349,0.66,188.73,188.67,37.66]
[1753386489574,0.66,188.73,188.71,5.33489971]
[1753386490057,0.66,188.72,188.71,5.33489971]
[1753386491550,5.95889314,188.72,188.67,37.66]
[1753386491754,5.95889314,188.72,188.69,5.33489971]
[1753386491755,0.66,188.71,188.69,5.33489971]
[1753386492145,26.0,188.75,188.7,5.33489971]
[1753386492345,5.95850345,188.74,188.72,5.33489971]
[1753386492546,0.66,188.73,188.68,37.64]
[1753386492755,0.66,188.73,188.68,5.33489971]
[1753386493067,5.29885544,188.72,188.68,5.33489971]
[1753386493272,0.66,188.71,188.69,5.33489971]
[1753386493459,0.66,188.71,188.7,5.33489971]
[1753386493654,2.2368,188.74,188.7,5.33489971]
[1753386493862,2.2368,188.74,188.73,5.33489971]
[1753386494465,0.69,188.76,188.73,5.33489971]
[1753386494664,0.03,188.76,188.69,37.64]
[1753386494964,0.03,188.76,188.75,5.33489971]
[1753386495244,0.69,188.76,188.69,42.93946886]
[1753386495449,0.69,188.76,188.72,5.33489971]
[1753386495651,6.02489971,188.76,188.69,37.64]
[1753386495852,0.66,188.75,188.7,5.33489971]
[1753386496055,31.99489971,188.75,188.64,12.09469971]
[1753386496271,5.33489971,188.73,188.67,5.33489971]
[1753386496477,0.66,188.72,188.68,5.33489971]
[1753386496680,0.66,188.71,188.68,5.33489971]
[1753386498881,5.9591525,188.71,188.68,5.33489971]
[1753386499084,5.29860166,188.73,188.68,5.33489971]
[1753386499291,26.66,188.75,188.7,5.33489971]
[1753386499488,26.66,188.74,188.71,5.33489971]
[1753386499781,0.66,188.73,188.7,5.33489971]
[1753386500579,0.69,188.76,188.7,0.67]
[1753386500784,0.69,188.76,188.74,5.33489971]
[1753386501079,0.66,188.75,188.72,5.33489971]
[1753386501376,0.66,188.75,188.73,5.33489971]
[1753386501698,0.03,188.76,188.74,5.33489971]
[1753386501854,0.03,188.76,188.71,0.67]
[1753386502175,0.03,188.76,188.75,5.33489971]
[1753386503050,0.03,188.76,188.75,6.00489971]
[1753386503260,0.03,188.76,188.75,5.33489971]
[1753386503976,0.03,188.76,188.75,6.00489971]
[1753386504865,0.03,188.76,188.75,5.33489971]
[1753386505487,0.03,188.76,188.73,0.67]
[1753386505672,0.03,188.76,188.75,5.33489971]
[1753386506063,0.66,188.75,188.7,38.29]
[1753386506380,0.66,188.75,188.74,5.33489971]
[1753386506561,0.03,188.76,188.74,5.33489971]